bitfinex/quotes_BTCUSD_20230403
["timestamp","ask_amount","ask_price","bid_price","bid_amount"]
[1680494827808,39.66872647,27730.0,27729.0,1.87495619]
[1680494827958,39.49786029,27730.0,27729.0,1.87495619]
[1680494828156,39.5354726,27730.0,27729.0,1.87495619]
[1680494828359,16.5354726,27730.0,27729.0,1.87495619]
[1680494828609,16.5354726,27730.0,27729.0,1.87489619]
[1680494828816,16.5354726,27730.0,27729.0,1.86784619]
[1680494829048,16.82703238,27730.0,27729.0,1.86784619]
[1680494829191,17.02489856,27730.0,27729.0,1.86784619]
[1680494830543,16.77613238,27730.0,27729.0,1.86784619]
[1680494830672,16.94699856,27730.0,27729.0,1.86784619]
[1680494831125,17.02429856,27730.0,27729.0,1.85686619]
[1680494832460,17.02429856,27730.0,27729.0,1.84785619]
[1680494833084,17.01708136,27730.0,27729.0,1.84803619]
[1680494835315,16.99008136,27730.0,27729.0,1.84803619]
[1680494835542,17.01708136,27730.0,27729.0,1.84803619]
[1680494836632,17.24822103,27730.0,27729.0,1.84803619]
[1680494836831,17.01708136,27730.0,27729.0,1.84803619]
[1680494840789,17.01725091,27730.0,27729.0,1.39345917]
[1680494842036,16.93985091,27730.0,27729.0,1.39345917]
[1680494843803,16.93985091,27730.0,27729.0,1.38434917]
[1680494844447,19.24491537,27730.0,27729.0,1.38434917]
[1680494845924,16.7689312,27730.0,27729.0,1.38434917]
[1680494846162,19.07405307,27730.0,27729.0,1.38434917]
[1680494846788,19.42926131,27730.0,27729.0,1.38434917]
[1680494847841,19.60012749,27730.0,27729.0,1.38434917]
[1680494848046,19.24491925,27730.0,27729.0,1.38434917]
[1680494849691,19.24491925,27730.0,27729.0,1.29997285]
[1680494851965,19.42529925,27730.0,27729.0,1.29997285]
[1680494852157,19.50269925,27730.0,27729.0,1.29997285]
[1680494853552,19.85790749,27730.0,27729.0,1.29997285]
[1680494853771,19.68704131,27730.0,27729.0,1.29997285]
[1680494854442,19.33183307,27730.0,27729.0,1.29997285]
[1680494855279,19.50269925,27730.0,27729.0,1.29997285]
[1680494855815,19.33183307,27730.0,27729.0,1.29116285]
[1680494856044,19.50269925,27730.0,27729.0,1.29116285]
[1680494856257,19.50269925,27730.0,27729.0,1.28116285]
[1680494858746,19.25453307,27730.0,27729.0,1.28116285]
[1680494861808,19.42539925,27730.0,27729.0,1.28116285]
[1680494864436,19.47915607,27730.0,27729.0,1.28116285]
[1680494864888,19.30828989,27730.0,27729.0,1.28116285]
[1680494865102,19.30825989,27730.0,27729.0,1.28116285]
[1680494865343,19.47912607,27730.0,27729.0,1.28116285]
[1680494867231,6.67545715,27725.0,27724.0,0.02259403]
[1680494867448,10.27845871,27725.0,27724.0,0.02277403]
[1680494867664,30.40479912,27725.0,27724.0,0.0216]
[1680494867885,12.40479912,27725.0,27724.0,0.0216]
[1680494868106,30.43179912,27725.0,27724.0,0.0216]
[1680494868538,30.40479912,27725.0,27724.0,0.0216]
[1680494868758,30.43179912,27725.0,27724.0,0.0216]
[1680494871110,30.40479912,27725.0,27724.0,0.0216]
[1680494871319,30.43179912,27725.0,27724.0,0.0216]
[1680494871750,30.76873074,27725.0,27724.0,0.0216]
[1680494872582,12.76873074,27725.0,27724.0,0.0216]
[1680494872807,30.76873074,27725.0,27724.0,0.0216]
[1680494873036,30.82216944,27725.0,27724.0,0.0216]
[1680494873232,30.65974944,27725.0,27724.0,0.0216]
[1680494873682,30.83061562,27725.0,27724.0,0.0216]
[1680494874427,30.83078517,27725.0,27724.0,0.0216]
[1680494874657,30.83061562,27725.0,27724.0,0.0216]
[1680494875099,30.80361562,27725.0,27724.0,0.0216]
[1680494875316,30.83061562,27725.0,27724.0,0.0216]
[1680494876937,30.82217944,27725.0,27724.0,0.0216]
[1680494877145,30.96604562,27725.0,27724.0,0.0216]
[1680494877824,30.99304562,27725.0,27724.0,0.0216]
[1680494878462,30.82217944,27725.0,27724.0,0.0216]
[1680494878895,30.99304562,27725.0,27724.0,0.0216]
[1680494879421,31.07225202,27725.0,27724.0,0.0216]
[1680494879632,31.07242382,27725.0,27724.0,0.0216]
[1680494879846,30.64181944,27725.0,27724.0,0.0216]
[1680494880066,30.81268562,27725.0,27724.0,0.0216]
[1680494880298,30.78568562,27725.0,27724.0,0.0216]
[1680494880514,30.81268562,27725.0,27724.0,0.0216]
[1680494883462,28.86669521,27725.0,27724.0,0.0216]
[1680494883885,28.86686476,27725.0,27724.0,0.0216]
[1680494884324,28.86669521,27725.0,27724.0,0.0216]
[1680494884534,30.81416797,27725.0,27724.0,0.0216]
[1680494884964,30.99453797,27725.0,27724.0,0.0216]
[1680494885871,30.96753797,27725.0,27724.0,0.0216]
[1680494886096,30.99453797,27725.0,27724.0,0.0216]
[1680494886775,30.96753797,27725.0,27724.0,0.0216]
[1680494888611,30.96753797,27725.0,27724.0,0.0216]
[1680494888822,30.99452797,27725.0,27724.0,0.0216]
[1680494889052,6.34457715,27720.0,27719.0,0.30368368]
[1680494889275,6.34457715,27720.0,27719.0,0.07906368]
[1680494889276,8.26347122,27720.0,27719.0,0.07906368]
[1680494889498,8.26347122,27720.0,27719.0,0.0779]
[1680494889724,8.26347122,27720.0,27719.0,0.07778]
[1680494889725,24.26347122,27720.0,27719.0,0.07778]
[1680494890867,24.29047122,27720.0,27719.0,0.07778]
[1680494893061,24.26347122,27720.0,27719.0,0.07778]
[1680494893273,24.11741589,27720.0,27719.0,0.07778]
[1680494894122,0.05,27719.0,27718.0,0.0216]
[1680494894346,1.74406615,27719.0,27718.0,0.0216]
[1680494894552,19.74406615,27719.0,27718.0,0.0216]
[1680494895201,19.77106615,27719.0,27718.0,0.0216]
[1680494895437,19.76024415,27719.0,27718.0,0.0216]
[1680494895660,19.77106615,27719.0,27718.0,0.0216]
[1680494896725,19.7712357,27719.0,27718.0,0.0216]
[1680494897281,19.77106615,27719.0,27718.0,0.0216]
[1680494897706,19.90085765,27719.0,27718.0,0.0216]
[1680494898106,3.66614625,27710.0,27709.0,0.036688]
[1680494898323,3.80812112,27710.0,27709.0,1.13538397]
[1680494898535,3.80812112,27710.0,27709.0,1.15342797]
[1680494898749,3.66614625,27710.0,27709.0,1.09929597]
[1680494898963,3.66614625,27710.0,27709.0,1.15342797]
[1680494899178,3.66614625,27710.0,27709.0,1.15629106]
[1680494899387,3.66614625,27710.0,27709.0,1.1567981]
[1680494905245,3.66614625,27710.0,27709.0,1.37254619]
[1680494908025,3.66614625,27710.0,27709.0,1.33645819]
[1680494910413,3.63412665,27710.0,27709.0,1.33645819]
[1680494911039,3.6342962,27710.0,27709.0,1.33615819]
[1680494919731,3.6342962,27710.0,27709.0,1.10255819]
[1680494919974,3.6342962,27710.0,27709.0,1.10207819]
[1680494920518,3.6342962,27710.0,27709.0,1.05895351]
[1680494921713,3.6402962,27710.0,27709.0,1.05895351]
[1680494921931,3.6342962,27710.0,27709.0,1.05895351]
[1680494922154,3.6462962,27710.0,27709.0,1.05895351]
[1680494922380,3.6462962,27710.0,27708.0,0.32963809]
[1680494922627,0.01216955,27710.0,27709.0,0.99774363]
[1680494923523,0.00016955,27710.0,27709.0,0.99774363]
[1680494923751,0.00016955,27712.0,27709.0,0.99774363]
[1680494923978,0.00016955,27712.0,27711.0,0.38]
[1680494924216,0.00016955,27712.0,27711.0,0.418926]
[1680494924884,0.01216955,27712.0,27711.0,0.418926]
[1680494925111,0.00016955,27712.0,27711.0,0.418926]
[1680494925341,0.02716955,27712.0,27711.0,0.418926]
[1680494925561,0.00016955,27712.0,27711.0,0.418926]
[1680494925781,0.02616955,27712.0,27711.0,0.418926]
[1680494926211,0.00016955,27712.0,27711.0,0.418926]
[1680494926432,0.02716955,27712.0,27711.0,0.418926]
[1680494926655,0.027,27712.0,27711.0,0.418926]
[1680494926917,0.02716955,27712.0,27711.0,0.41938992]
[1680494927133,0.00016955,27712.0,27711.0,0.41938992]
[1680494927354,0.02616955,27712.0,27711.0,0.41938992]
[1680494927570,0.00016955,27712.0,27711.0,0.41938992]
[1680494927790,0.02716955,27712.0,27711.0,0.41938992]
[1680494928260,0.00016955,27712.0,27711.0,0.41938992]
[1680494928476,0.02616955,27712.0,27711.0,0.41938992]
[1680494928688,0.00016955,27712.0,27711.0,0.41938992]
[1680494928893,0.02716955,27712.0,27711.0,0.41938992]
[1680494929319,0.027,27712.0,27711.0,0.41938992]
[1680494929535,0.02701955,27712.0,27711.0,0.41938992]
[1680494929749,0.02716955,27712.0,27711.0,0.41938992]
[1680494929966,0.00016955,27712.0,27711.0,0.41938992]
[1680494930189,0.02616955,27712.0,27711.0,0.41938992]
[1680494930627,0.00016955,27712.0,27711.0,0.41938992]
[1680494930850,0.02716955,27712.0,27711.0,0.41938992]
[1680494931060,0.00016955,27712.0,27711.0,0.41938992]
[1680494931272,0.02616955,27712.0,27711.0,0.41938992]
[1680494931497,0.00016955,27712.0,27711.0,0.38046392]
[1680494931711,0.02716955,27712.0,27711.0,0.41929692]
[1680494932599,0.02716955,27712.0,27711.0,0.418833]
[1680494932817,0.00016955,27712.0,27711.0,0.418833]
[1680494933283,0.02616955,27712.0,27711.0,0.418833]
[1680494933505,0.00016955,27712.0,27711.0,0.418833]
[1680494933724,0.02716955,27712.0,27711.0,0.418833]
[1680494934486,0.02716955,27712.0,27711.0,0.038833]
[1680494934707,0.02716955,27712.0,27711.0,0.03929692]
[1680494938523,0.02716955,27712.0,27711.0,0.87863769]
[1680494938739,0.02716955,27712.0,27711.0,0.79231489]
[1680494940952,0.02716955,27712.0,27711.0,0.87863769]
[1680494941161,0.02716955,27712.0,27711.0,0.79231489]
[1680494941335,0.02716955,27712.0,27711.0,0.87863769]
[1680494941761,0.02716955,27712.0,27711.0,0.79231489]
[1680494941981,0.02716955,27712.0,27711.0,0.87863769]
[1680494942821,0.05951208,27712.0,27711.0,0.87863769]
[1680494943174,0.05951208,27712.0,27711.0,0.79231489]
[1680494943622,0.05951208,27712.0,27711.0,0.87863769]
[1680494944169,0.05951208,27712.0,27711.0,0.79231489]
[1680494946075,0.05934253,27712.0,27711.0,0.79231489]
[1680494948457,0.09488003,27712.0,27711.0,0.79231489]
[1680494948885,0.09488003,27712.0,27711.0,0.87863769]
[1680494962210,0.09488003,27712.0,27711.0,0.83980469]
[1680494962859,0.09488003,27712.0,27711.0,0.87698169]
[1680494963818,0.09488003,27712.0,27711.0,0.87828369]
[1680494964696,0.09488003,27712.0,27711.0,0.87713569]
[1680494969010,0.09476428,27712.0,27711.0,0.87713569]
[1680494973074,0.09476428,27712.0,27711.0,0.83980469]
[1680494975259,0.09476428,27712.0,27711.0,0.87941069]
[1680494976086,0.09476428,27712.0,27711.0,0.48482972]
[1680494976941,0.09476428,27712.0,27711.0,0.39850692]
[1680494977852,0.09476428,27712.0,27711.0,0.43664692]
[1680494978066,0.09476428,27712.0,27711.0,0.39850692]
[1680494978472,0.09476428,27712.0,27711.0,0.48482972]
[1680494978672,0.09476428,27712.0,27711.0,0.39850692]
[1680494981977,0.09476428,27712.0,27711.0,0.48482972]
[1680494982190,0.09476428,27712.0,27711.0,0.39850692]
[1680494984435,0.09476428,27712.0,27711.0,0.38046392]
[1680494985495,0.09476428,27712.0,27711.0,0.39850692]
[1680494985679,0.09476428,27712.0,27711.0,0.43657792]
[1680494986286,0.09476428,27712.0,27711.0,0.39850692]
[1680494986811,0.09476428,27712.0,27711.0,0.43656092]
[1680494987352,0.09476428,27712.0,27711.0,0.39850692]
[1680494987909,0.09476428,27712.0,27711.0,0.03716692]
[1680494988154,0.17206428,27712.0,27711.0,0.00046392]
[1680494988562,0.17206428,27712.0,27708.0,0.23400546]
[1680494988778,0.0773,27710.0,27708.0,0.1045468]
[1680494988984,0.0773,27710.0,27709.0,0.035973]
[1680494990044,0.1043,27710.0,27709.0,0.035973]
[1680494990338,0.0773,27710.0,27709.0,0.035973]
[1680494990562,0.1033,27710.0,27709.0,0.035973]
[1680494990768,0.0773,27710.0,27709.0,0.00045858]
[1680494990934,0.202695,27710.0,27709.0,0.00045858]
[1680494991136,0.54750097,27710.0,27709.0,0.00045858]
[1680494991349,3.81076139,27710.0,27709.0,0.00045858]
[1680494991563,4.81926139,27710.0,27705.0,0.00018]
[1680494991806,0.0779,27706.0,27705.0,6e-05]
[1680494992033,0.1279,27706.0,27704.0,0.00117623]
[1680494992253,0.1279,27706.0,27703.0,0.0865028]
[1680494992462,0.0779,27706.0,27703.0,0.0865028]
[1680494992685,0.0749,27706.0,27703.0,0.0863228]
[1680494992898,0.0749,27706.0,27705.0,0.00046033]
[1680494993111,0.1019,27706.0,27705.0,0.00046033]
[1680494993321,0.0749,27706.0,27705.0,0.00046033]
[1680494993539,0.1009,27706.0,27705.0,0.00046033]
[1680494993776,0.0749,27706.0,27705.0,0.00046033]
[1680494994184,0.1019,27706.0,27705.0,0.00046033]
[1680494995365,0.0749,27706.0,27705.0,0.00046033]
[1680494995576,0.1019,27706.0,27705.0,0.00046033]
[1680494999309,0.45687497,27706.0,27705.0,0.00046033]
[1680494999536,0.58477497,27706.0,27705.0,0.00046033]
[1680494999914,0.53477497,27706.0,27705.0,0.00046033]
[1680495000535,0.53477497,27706.0,27702.0,0.039648]
[1680495000766,0.1273,27705.0,27702.0,0.039648]
[1680495000991,0.7773,27705.0,27703.0,0.038703]
[1680495001201,0.1278,27704.0,27703.0,0.00078164]
[1680495001414,0.0778,27704.0,27703.0,0.00078164]
[1680495001849,0.0778,27704.0,27703.0,0.01882964]
[1680495002067,0.7773,27705.0,27704.0,0.00043305]
[1680495002497,0.7773,27705.0,27703.0,0.01926317]
[1680495002726,0.7773,27705.0,27703.0,0.00078164]
[1680495003179,0.8043,27705.0,27703.0,0.01882964]
[1680495003413,0.8043,27705.0,27703.0,0.19882964]
[1680495003623,0.8043,27705.0,27704.0,0.038787]
[1680495003829,0.8043,27705.0,27703.0,0.19900964]
[1680495004046,0.7773,27705.0,27703.0,0.19900964]
[1680495004251,0.8043,27705.0,27703.0,0.19900964]
[1680495004484,0.7773,27705.0,27704.0,0.0387471]
[1680495004713,0.8043,27705.0,27704.0,0.0004331]
[1680495004918,0.7773,27705.0,27704.0,0.0004331]
[1680495005118,0.8043,27705.0,27704.0,0.0004331]
[1680495005327,0.7773,27705.0,27704.0,0.0004331]
[1680495005530,0.7773,27705.0,27703.0,0.19900964]
[1680495005731,0.8043,27705.0,27704.0,0.037646]
[1680495005953,0.7773,27705.0,27703.0,0.19900964]
[1680495006598,0.7773,27705.0,27704.0,0.0385811]
[1680495006811,0.8043,27705.0,27704.0,0.0004331]
[1680495007041,0.7773,27705.0,27704.0,0.0004331]
[1680495007268,0.8043,27705.0,27704.0,0.00108444]
[1680495007481,0.7773,27705.0,27704.0,0.00108444]
[1680495007900,0.8043,27705.0,27704.0,0.00108444]
[1680495008593,0.7773,27705.0,27704.0,0.00108444]
[1680495008819,0.8043,27705.0,27704.0,0.00108444]
[1680495011354,0.8043,27705.0,27704.0,0.01913144]
[1680495011566,0.8043,27705.0,27704.0,0.05905544]
[1680495012264,0.727,27705.0,27704.0,0.05905544]
[1680495012486,0.027,27705.0,27704.0,0.43905544]
[1680495012700,0.77814701,27708.0,27704.0,0.43923544]
[1680495012925,0.7779,27708.0,27705.0,0.039151]
[1680495013168,0.7779,27708.0,27706.0,0.018046]
[1680495013597,0.7779,27708.0,27707.0,0.037968]
[1680495013810,0.8049,27708.0,27707.0,0.056013]
[1680495014018,0.7779,27708.0,27707.0,0.018045]
[1680495014241,0.727,27708.0,27707.0,0.018045]
[1680495014626,0.7,27708.0,27707.0,0.018045]
[1680495014840,0.7,27708.0,27707.0,0.01847677]
[1680495015576,0.727,27708.0,27707.0,0.01847677]
[1680495015707,0.7,27708.0,27707.0,0.01847677]
[1680495015931,0.726,27708.0,27707.0,0.01847677]
[1680495016802,0.7,27708.0,27707.0,0.01847677]
[1680495017139,0.72690197,27708.0,27707.0,0.01847677]
[1680495018206,0.71690197,27708.0,27707.0,0.01847677]
[1680495019712,0.71690197,27708.0,27707.0,0.00043177]
[1680495019934,0.71690197,27708.0,27707.0,0.00033672]
[1680495020144,0.78689322,27708.0,27707.0,0.00033672]
[1680495020795,0.78689322,27708.0,27707.0,0.00042367]
[1680495022013,0.86399322,27708.0,27707.0,0.00068418]
[1680495023169,0.92971379,27708.0,27707.0,0.00068418]
[1680495024423,0.95671379,27708.0,27707.0,0.00068418]
[1680495028131,1.10821744,27708.0,27707.0,0.00068418]
[1680495040328,1.10815244,27708.0,27707.0,0.00068418]
[1680495044405,1.03105244,27708.0,27707.0,0.00068418]
[1680495045090,1.03105244,27708.0,27707.0,0.05745718]
[1680495046223,1.00405244,27708.0,27707.0,0.05757718]
[1680495046444,1.03105244,27708.0,27707.0,0.05763718]
[1680495053565,1.03105244,27708.0,27707.0,0.43763718]
[1680495054459,1.03105244,27708.0,27707.0,0.79261215]
[1680495056447,1.03129945,27708.0,27707.0,0.79243215]
[1680495057128,1.03105244,27708.0,27707.0,0.79261215]
[1680495057806,1.00405244,27708.0,27707.0,0.79261215]
[1680495058031,1.01705244,27708.0,27707.0,0.79261215]
[1680495058261,1.00405244,27708.0,27707.0,0.79261215]
[1680495058492,1.02305244,27708.0,27707.0,0.79261215]
[1680495062038,1.02295276,27708.0,27707.0,0.79261215]
[1680495069458,1.03392555,27708.0,27707.0,0.79261215]
[1680495072452,1.03402256,27708.0,27707.0,0.79243215]
[1680495072656,1.03417256,27708.0,27707.0,0.79243215]
[1680495072873,1.03392555,27708.0,27707.0,0.79261215]
[1680495076265,1.06328934,27708.0,27707.0,0.79261215]
[1680495083241,1.06328934,27708.0,27707.0,0.75388415]
[1680495083705,1.06328934,27708.0,27707.0,0.79328415]
[1680495084337,1.06328934,27708.0,27707.0,0.7934297]
[1680495088737,1.09563187,27708.0,27707.0,0.7934297]
[1680495090245,1.13116937,27708.0,27707.0,0.7934297]
[1680495090771,1.16480686,27708.0,27707.0,0.7934297]
[1680495093217,1.16469632,27708.0,27707.0,0.7934297]
[1680495095495,1.16469632,27708.0,27707.0,0.8797525]
[1680495095924,1.16469632,27708.0,27707.0,0.7934297]
[1680495096355,1.16469632,27708.0,27707.0,0.8797525]
[1680495097400,1.16469632,27708.0,27707.0,0.7934297]
[1680495097859,1.16469632,27708.0,27707.0,0.7917147]
[1680495098715,1.16469632,27708.0,27707.0,0.8780375]
[1680495101062,1.16469632,27708.0,27707.0,0.8403525]
[1680495101258,1.16469632,27708.0,27707.0,0.8775855]
[1680495114467,1.16458937,27708.0,27707.0,0.8775855]
[1680495125341,1.16458937,27708.0,27707.0,0.8403525]
[1680495125561,1.31928937,27708.0,27707.0,0.38100973]
[1680495126217,1.30028937,27708.0,27707.0,0.38100973]
[1680495126456,1.31928937,27708.0,27707.0,0.38100973]
[1680495126926,1.30028937,27708.0,27707.0,0.38100973]
[1680495127367,1.32728937,27708.0,27707.0,0.38067301]
[1680495127585,1.32728937,27708.0,27707.0,0.38044051]
[1680495128233,1.32728937,27708.0,27707.0,0.00018]
[1680495128455,1.32728937,27708.0,27707.0,0.039761]
[1680495128898,1.32728937,27708.0,27706.0,0.4845488]
[1680495129117,0.0776,27707.0,27706.0,0.83952377]
[1680495129581,0.0776,27707.0,27706.0,0.87552677]
[1680495130026,0.0776,27707.0,27706.0,0.83952377]
[1680495130284,0.1036,27707.0,27706.0,0.83991455]
[1680495130502,0.1036,27707.0,27706.0,0.87709255]
[1680495131281,0.1036,27707.0,27706.0,0.87766243]
[1680495132014,0.026,27707.0,27706.0,0.49766243]
[1680495132744,0.026,27707.0,27706.0,0.47961643]
[1680495133221,0.026,27707.0,27706.0,0.44243843]
[1680495133423,0.026,27707.0,27706.0,0.85961543]
[1680495133635,0.026,27707.0,27706.0,0.47961543]
[1680495134546,0.026,27707.0,27706.0,0.12464046]
[1680495134749,0.026,27707.0,27706.0,0.08740346]
[1680495134957,0.026,27707.0,27706.0,0.12477946]
[1680495135182,0.026,27707.0,27706.0,0.12489946]
[1680495135391,0.026,27707.0,27706.0,0.14294546]
[1680495137335,0.026,27707.0,27706.0,0.14332346]
[1680495137862,0.026,27707.0,27706.0,0.10544946]
[1680495138070,0.026,27707.0,27706.0,0.14425446]
[1680495138288,0.02593302,27707.0,27706.0,0.14425446]
[1680495138943,0.02593302,27707.0,27706.0,0.10532946]
[1680495139157,0.02593302,27707.0,27706.0,0.14179046]
[1680495140454,0.02593302,27707.0,27706.0,0.05546766]
[1680495141203,0.02593302,27707.0,27706.0,0.01900666]
[1680495142063,0.10383302,27707.0,27706.0,0.00096066]
[1680495142279,0.10383302,27707.0,27706.0,0.00039078]
[1680495142487,0.12468502,27707.0,27706.0,0.00039078]
[1680495142895,0.10383302,27707.0,27706.0,0.00039078]
[1680495143106,0.0779,27707.0,27704.0,0.1043698]
[1680495143315,0.1049,27707.0,27706.0,0.00056988]
[1680495144153,0.1049,27707.0,27706.0,0.00096066]
[1680495144361,0.1049,27707.0,27706.0,0.00039078]
[1680495145168,0.1049,27707.0,27704.0,0.1044898]
[1680495146064,0.0779,27707.0,27704.0,0.1044898]
[1680495146279,0.0779,27707.0,27704.0,0.1044298]
[1680495146500,0.0969,27707.0,27704.0,0.1044298]
[1680495146725,0.0969,27707.0,27706.0,0.00056988]
[1680495147173,0.1469,27707.0,27706.0,0.00056988]
[1680495147385,0.0969,27707.0,27706.0,0.00056988]
[1680495147597,0.0779,27707.0,27706.0,0.00056988]
[1680495147817,0.1549,27707.0,27706.0,0.00056988]
[1680495148521,0.1549,27707.0,27704.0,0.018227]
[1680495148705,0.1549,27707.0,27704.0,0.018047]
[1680495148933,0.1049,27707.0,27704.0,0.1043698]
[1680495149172,0.0779,27707.0,27704.0,0.1044898]
[1680495149357,0.0969,27707.0,27704.0,0.1044298]
[1680495149585,0.0969,27707.0,27704.0,0.1044898]
[1680495150727,0.0969,27707.0,27705.0,0.00045642]
[1680495151599,0.0969,27707.0,27705.0,0.00057052]
[1680495152184,0.0779,27707.0,27705.0,0.00057052]
[1680495152416,0.1039,27707.0,27705.0,0.01861752]
[1680495152626,0.1039,27707.0,27705.0,0.00057052]
[1680495153272,0.1039,27707.0,27705.0,0.01861752]
[1680495153495,0.1039,27707.0,27705.0,0.018047]
[1680495154354,0.1039,27707.0,27706.0,0.00039078]
[1680495154576,0.1039,27707.0,27706.0,0.00096066]
[1680495154806,0.7743198,27707.0,27706.0,0.00096066]
[1680495155080,0.7933728,27707.0,27706.0,0.00096066]
[1680495155303,0.84361981,27707.0,27706.0,0.00096066]
[1680495155744,3.84361981,27707.0,27706.0,0.00096066]
[1680495155973,3.81761981,27707.0,27706.0,0.00096066]
[1680495156194,3.79461981,27707.0,27706.0,0.00056988]
[1680495156389,3.87201981,27707.0,27706.0,0.00056988]
[1680495156655,3.88051981,27707.0,27706.0,0.00056988]
[1680495156881,3.88051981,27707.0,27703.0,0.18]
[1680495157112,0.7477198,27704.0,27703.0,0.18]
[1680495158237,0.7477198,27704.0,27703.0,0.18078164]
[1680495158454,0.7747198,27704.0,27703.0,0.18078164]
[1680495158898,0.7747198,27704.0,27703.0,0.18123963]
[1680495159347,0.7832198,27704.0,27703.0,0.18123963]
[1680495159561,0.7777728,27704.0,27703.0,0.18123963]
[1680495159775,3.7777728,27704.0,27703.0,0.18123963]
[1680495160249,3.7777728,27704.0,27703.0,0.18045799]
[1680495160467,3.7777728,27704.0,27703.0,0.18]
[1680495160910,3.8047728,27704.0,27703.0,0.18]
[1680495161362,3.7777728,27704.0,27703.0,0.18]
[1680495161591,3.8047728,27704.0,27703.0,0.18]
[1680495162909,3.7777728,27704.0,27703.0,0.18]
[1680495163126,3.8047728,27704.0,27703.0,0.18]
[1680495164446,3.7777728,27704.0,27703.0,0.18]
[1680495164843,3.8047728,27704.0,27703.0,0.18]
[1680495165060,3.7769868,27704.0,27703.0,0.18]
[1680495165291,3.8039868,27704.0,27703.0,0.18]
[1680495168585,3.8041128,27704.0,27703.0,0.18]
[1680495169484,3.7832198,27704.0,27703.0,0.18]
[1680495169887,3.78346681,27704.0,27703.0,0.18]
[1680495170111,3.80415081,27704.0,27703.0,0.18]
[1680495170326,3.80458181,27704.0,27703.0,0.18]
[1680495170694,3.78346681,27704.0,27703.0,0.18]
[1680495171099,3.80391881,27704.0,27703.0,0.18]
[1680495171555,3.8036718,27704.0,27703.0,0.18]
[1680495171782,3.7832198,27704.0,27703.0,0.18]
[1680495172213,3.8037868,27704.0,27703.0,0.18]
[1680495173301,3.7832198,27704.0,27703.0,0.18]
[1680495174549,3.78346681,27704.0,27703.0,0.18]
[1680495175177,3.7832198,27704.0,27703.0,0.18]
[1680495183021,3.7562198,27704.0,27703.0,0.18]
[1680495183264,3.7832198,27704.0,27703.0,0.18]
[1680495184357,3.78346681,27704.0,27703.0,0.17989238]
[1680495187647,3.78346681,27704.0,27703.0,0.19794038]
[1680495187864,3.75646681,27704.0,27703.0,0.19794038]
[1680495188078,3.78346681,27704.0,27703.0,0.19794038]
[1680495188767,3.69766681,27704.0,27703.0,0.23895138]
[1680495189191,3.69766681,27704.0,27703.0,0.23973302]
[1680495189400,13.69766681,27704.0,27703.0,0.23973302]
[1680495189643,0.69766681,27704.0,27703.0,0.19918001]
[1680495190088,6.69766681,27704.0,27703.0,0.19918001]
[1680495190278,6.69766681,27704.0,27703.0,0.19839837]
[1680495190516,6.69766681,27704.0,27703.0,0.19794038]
[1680495191327,6.69766681,27704.0,27703.0,0.19872202]
[1680495191536,6.69766681,27704.0,27703.0,0.19918001]
[1680495192193,6.69766681,27704.0,27703.0,0.19839837]
[1680495192407,6.69766681,27704.0,27703.0,0.19794038]
[1680495193185,6.69766681,27704.0,27703.0,0.19872202]
[1680495193582,6.71915481,27704.0,27703.0,0.19918]
[1680495193817,6.69766681,27704.0,27703.0,0.19918]
[1680495196274,6.69766681,27704.0,27703.0,0.19839836]
[1680495196480,6.69766681,27704.0,27703.0,0.19794038]
[1680495198283,6.69766681,27704.0,27703.0,0.19872202]
[1680495198693,6.69766681,27704.0,27703.0,0.19917991]
[1680495199299,6.6974198,27704.0,27703.0,0.19917991]
[1680495205956,6.69766681,27704.0,27703.0,0.19917991]
[1680495206175,6.6974198,27704.0,27703.0,0.19917991]
[1680495206625,6.69733131,27704.0,27703.0,0.19917991]
[1680495209505,6.69757832,27704.0,27703.0,0.19917991]
[1680495209620,6.69739131,27704.0,27703.0,0.19917991]
[1680495209852,6.69733131,27704.0,27703.0,0.19917991]
[1680495217429,6.69748131,27704.0,27703.0,0.19917991]
[1680495217670,6.69757832,27704.0,27703.0,0.19917991]
[1680495217901,6.69733131,27704.0,27703.0,0.23700591]
[1680495218115,6.69733131,27704.0,27703.0,0.23718591]
[1680495218782,6.69733131,27704.0,27703.0,0.19935991]
[1680495219003,6.69733131,27704.0,27703.0,0.19917991]
[1680495220388,6.69733131,27704.0,27703.0,0.23956391]
[1680495220606,6.69733131,27704.0,27703.0,0.23974391]
[1680495225730,6.69733131,27704.0,27703.0,0.19935991]
[1680495225938,6.69733131,27704.0,27703.0,0.19917991]
[1680495226881,6.6972451,27704.0,27703.0,0.19917991]
[1680495228157,6.6972451,27704.0,27703.0,0.23894491]
[1680495228374,6.6972451,27704.0,27703.0,0.32544771]
[1680495228814,6.6972451,27704.0,27703.0,0.23912491]
[1680495229005,0.6972451,27704.0,27703.0,0.23912491]
[1680495229225,6.6972451,27704.0,27703.0,0.23912491]
[1680495229492,6.7185151,27704.0,27703.0,0.19935991]
[1680495229715,0.7185151,27704.0,27703.0,0.19917991]
[1680495229879,12.6972451,27704.0,27703.0,0.19917991]
[1680495230235,0.71897511,27704.0,27703.0,0.19839827]
[1680495230445,9.69749211,27704.0,27703.0,0.19794038]
[1680495230654,9.7180061,27704.0,27703.0,0.19794038]
[1680495230869,0.7180061,27704.0,27703.0,0.19794038]
[1680495231087,14.6972451,27704.0,27703.0,0.19794038]
[1680495233708,14.7186991,27704.0,27703.0,0.19794038]
[1680495233919,14.69749211,27704.0,27703.0,0.19794038]
[1680495234132,14.6972451,27704.0,27703.0,0.19794038]
[1680495234561,14.7174791,27704.0,27703.0,0.19794038]
[1680495235377,14.7177081,27704.0,27703.0,0.19794038]
[1680495236025,14.6972451,27704.0,27703.0,0.19794038]
[1680495236258,14.7177541,27704.0,27703.0,0.19794038]
[1680495236458,14.6972451,27704.0,27703.0,0.28426318]
[1680495236677,14.7175791,27704.0,27703.0,0.28444318]
[1680495237401,14.6972451,27704.0,27703.0,0.19812038]
[1680495237615,14.6972451,27704.0,27703.0,0.28426318]
[1680495237795,14.6972451,27704.0,27703.0,0.28444318]
[1680495238017,14.7181961,27704.0,27703.0,0.28444318]
[1680495238223,14.6972451,27704.0,27703.0,0.28444318]
[1680495238656,14.7175341,27704.0,27703.0,0.28444318]
[1680495238857,14.6972451,27704.0,27703.0,0.28444318]
[1680495239059,14.7181721,27704.0,27703.0,0.28444318]
[1680495239300,14.6972451,27704.0,27703.0,0.28444318]
[1680495239701,14.69749211,27704.0,27703.0,0.2841519]
[1680495239917,14.7275649,27704.0,27703.0,0.2841519]
[1680495240350,14.7480819,27704.0,27703.0,0.2841519]
[1680495240481,14.77744569,27704.0,27703.0,0.2841519]
[1680495240890,14.80978822,27704.0,27703.0,0.2841519]
[1680495241905,14.84532572,27704.0,27703.0,0.2841519]